lending/lending_fUSD_20250424
["ID","MTS","AMOUNT","RATE_DAILY","PERIOD"]
[358812617,1745458994726,672.64,0.00041095,30]
[358812618,1745458994763,1150.43,0.00041095,30]
[358812619,1745458994802,1382.47,0.00041095,30]
[358812620,1745458994850,2007.92,0.00041095,30]
[358812621,1745458995477,581.45,0.00041095,30]
[358812622,1745458995518,672.64,0.00041095,30]
[358812623,1745458995561,1150.43,0.00041095,30]
[358812624,1745458995605,1382.47,0.00041095,30]
[358812625,1745458995648,672.64,0.00041095,30]
[358812626,1745458995692,581.45,0.00041095,30]
[358812627,1745458995731,1382.47,0.00041095,30]
[358812628,1745458995775,2007.92,0.00041095,30]
[358812629,1745458995816,672.64,0.00041095,30]
[358812630,1745458995854,581.45,0.00041095,30]
[358812631,1745458995959,1382.47,0.00041095,30]
[358812632,1745458996003,2007.92,0.00041095,30]
[358812633,1745458996040,672.64,0.00041095,30]
[358812634,1745458996078,581.47313109,0.00041095,30]
[358812635,1745458996120,1382.47,0.00041095,30]
[358812636,1745458996158,2007.92,0.00041095,30]
[358812637,1745458996196,1150.43,0.00041095,30]
[358812638,1745458996235,672.64,0.00041095,30]
[358812639,1745458996273,1382.47,0.00041095,30]
[358812640,1745458996312,2007.92,0.00041095,30]
[358812641,1745458996352,1150.43,0.00041095,30]
[358812642,1745458996389,672.64,0.00041095,30]
[358812643,1745458996430,1382.47,0.00041095,30]
[358812644,1745458996476,2007.92,0.00041095,30]
[358812645,1745458996520,1150.43,0.00041095,30]
[358812646,1745458996614,672.64,0.00041095,30]
[358812647,1745458996719,1382.47,0.00041095,30]
[358812648,1745458996757,2007.92,0.00041095,30]
[358812649,1745458996794,1150.43,0.00041095,30]
[358812650,1745458996838,672.64,0.00041095,30]
[358812651,1745458996958,1382.53744796,0.00041095,30]
[358812652,1745458996994,1313.51047364,0.00041095,30]
[358812656,1745459017868,2000.0,0.00018848,2]
[358812671,1745459216461,527.47,0.00017135,2]
[358812679,1745459360051,-210.162021,0.00018981,2]
[358812680,1745459360075,-61.71410411,0.00019048,2]
[358812704,1745459431585,-315.94,0.00019048,2]
[358812705,1745459431663,-622.34589589,0.00019048,2]
[358812706,1745459431672,-163.22,0.00019076,2]
[358812707,1745459431682,-14.43410411,0.00019327,2]
[358812996,1745459437901,-285.56589589,0.00019327,2]
[358812998,1745459437911,-1200.0,0.00019327,2]
[358813000,1745459437921,-250.0,0.00019327,2]
[358813002,1745459437931,-23900.0,0.00019328,2]
[358813004,1745459437941,-527.47,0.00019399,2]
[358813006,1745459437950,-250.0,0.0001942,2]
[358813008,1745459437961,-1476.0,0.000196,2]
[358813010,1745459437970,-166.66,0.00019719,2]
[358813012,1745459437979,-231.907539,0.00019799,2]
[358813014,1745459437989,-1000.0,0.000198,2]
[358813016,1745459437998,-500.0,0.00019863,2]
[358813018,1745459438007,-154.57130189,0.00019886,2]
[358813020,1745459438017,-154.57130188,0.00019893,2]
[358813022,1745459438027,-2728.5529,0.00019898,2]
[358813024,1745459438036,-320.979,0.00019899,2]
[358813026,1745459438045,-1510.118,0.00019899,2]
[358813028,1745459438055,-1000.0,0.000199,2]
[358813030,1745459438064,-1000.0,0.000199,2]
[358813032,1745459438073,-1000.0,0.000199,2]
[358813034,1745459438082,-1000.0,0.000199,2]
[358813036,1745459438092,-1000.0,0.000199,2]
[358813038,1745459438101,-1000.0,0.000199,2]
[358813040,1745459438111,-1000.0,0.000199,2]
[358813042,1745459438121,-1000.0,0.000199,2]
[358813044,1745459438131,-1000.0,0.000199,2]
[358813046,1745459438140,-1000.0,0.000199,2]
[358813048,1745459438151,-1000.0,0.000199,2]
[358813050,1745459438163,-1000.0,0.000199,2]
[358813052,1745459438172,-1000.0,0.000199,2]
[358813054,1745459438181,-1000.0,0.000199,2]
[358813056,1745459438190,-1000.0,0.000199,2]
[358813058,1745459438200,-1000.0,0.000199,2]
[358813060,1745459438210,-1000.0,0.000199,2]
[358813062,1745459438221,-1000.0,0.000199,2]
[358813064,1745459438230,-1000.0,0.000199,2]
[358813066,1745459438241,-1000.0,0.000199,2]
[358813068,1745459438251,-1000.0,0.000199,2]
[358813070,1745459438261,-1000.0,0.000199,2]
[358813072,1745459438271,-1000.0,0.000199,2]
[358813074,1745459438280,-723.0,0.000199,2]
[358813076,1745459438291,-1475.0,0.000199,2]
[358813078,1745459438300,-504.57373187,0.000199,2]
[358813080,1745459438310,-154.57130188,0.000199,2]
[358813082,1745459438320,-500.0,0.00019973,2]
[358813084,1745459438329,-579.86298387,0.00019985,2]
[358813086,1745459438338,-579.86298387,0.00019985,2]
[358813088,1745459438348,-579.86298387,0.00019985,2]
[358813089,1745459438357,-579.86298387,0.00019985,2]
[358813091,1745459438367,-579.86298387,0.00019985,2]
[358813094,1745459438376,-579.86298387,0.00019985,2]
[358813095,1745459438386,-579.86298387,0.00019985,2]
[358813097,1745459438395,-579.86298387,0.00019985,2]
[358813099,1745459438405,-579.86298387,0.00019985,2]
[358813101,1745459438414,-579.86298387,0.00019985,2]
[358813103,1745459438424,-579.86298387,0.00019985,2]
[358813105,1745459438434,-579.86298387,0.00019985,2]
[358813107,1745459438443,-579.86298387,0.00019985,2]
[358813109,1745459438453,-579.86298387,0.00019985,2]
[358813111,1745459438463,-579.86298387,0.00019985,2]
[358813113,1745459438472,-579.86298387,0.00019985,2]
[358813115,1745459438481,-579.86298387,0.00019985,2]
[358813117,1745459438490,-579.86298387,0.00019985,2]
[358813119,1745459438500,-579.86298387,0.00019985,2]
[358813121,1745459438509,-579.86298387,0.00019985,2]
[358813123,1745459438518,-579.86298387,0.00019985,2]
[358813125,1745459438528,-646.13303918,0.00019985,2]
[358813127,1745459438537,-646.13303918,0.00019985,2]
[358813129,1745459438546,-646.13303918,0.00019985,2]
[358813131,1745459438556,-646.13303918,0.00019985,2]
[358813133,1745459438565,-646.13303918,0.00019985,2]
[358813135,1745459438575,-646.13303918,0.00019985,2]
[358813137,1745459438584,-646.13303918,0.00019985,2]
[358813139,1745459438594,-6307.8585834,0.00019986,2]
[358813141,1745459438604,-100043.5269565,0.00019986,2]
[358813143,1745459438613,-43763.3397723,0.00019986,2]
[358813145,1745459438623,-7253.9085195,0.00019986,2]
[358813147,1745459438632,-14148.2037553,0.00019986,2]
[358813149,1745459438641,-1000.0,0.00019998,2]
[358813151,1745459438651,-1000.0,0.00019998,2]
[358813153,1745459438660,-1000.0,0.00019998,2]
[358813155,1745459438670,-1000.0,0.00019998,2]
[358813157,1745459438679,-1000.0,0.00019998,2]
[358813159,1745459438688,-1000.0,0.00019998,2]
[358813161,1745459438698,-1000.0,0.00019998,2]
[358813163,1745459438707,-1000.0,0.00019999,2]
[358813165,1745459438716,-1000.0,0.00019999,2]
[358813167,1745459438726,-1000.0,0.00019999,2]
[358813169,1745459438735,-1000.0,0.00019999,2]
[358813171,1745459438745,-1000.0,0.00019999,2]
[358813173,1745459438756,-1000.0,0.00019999,2]
[358813175,1745459438765,-1000.0,0.00019999,2]
[358813177,1745459438774,-1000.0,0.00019999,2]
[358813179,1745459438783,-112206.6443636,0.00019999,2]
[358813181,1745459438793,-300.0,0.00019999,2]
[358813183,1745459438803,-300.0,0.00019999,2]
[358813185,1745459438812,-300.0,0.00019999,2]
[358813187,1745459438822,-1267.5998676,0.00019999,2]
[358813189,1745459438831,-1060.0,0.00019999,2]
[358813191,1745459438841,-940230.1274591,0.0002,2]
[358813193,1745459438851,-1259860.13628276,0.0002,2]
[358813195,1745459438863,-2494318.525,0.0002,2]
[358813282,1745459439854,-1056.333223,0.00019999,2]
[358813284,1745459439863,-794.966777,0.0002,2]
[358813296,1745459439973,-3940.37736872,0.0002,2]
[358813312,1745459440113,-1056.333223,0.00019999,2]
[358813314,1745459440123,-5038769.95760527,0.0002,2]
[358813553,1745459442541,-288.21007754,0.0002,2]
[358813836,1745459445443,-400.0,0.0002,2]
[358813837,1745459445506,-656.0,0.0002,2]
[358813838,1745459445515,-779.71016166,0.0002,2]
[358814482,1745459473080,50106.53772341,0.00019999,4]
[358814483,1745459473105,4444.04710878,0.00019999,4]
[358814489,1745459735229,5179.3,0.00013699,2]
[358814490,1745459735436,5179.3,0.00013699,2]
[358814491,1745459735830,282.57993476,0.00013699,2]
[358814492,1745459735852,4896.72006524,0.00013699,2]
[358814493,1745459736646,5179.3,0.00013699,2]
[358814494,1745459737113,5179.3,0.00013699,2]
[358814495,1745459737838,5179.3,0.00013699,2]
[358814496,1745459738451,5179.3,0.00013699,2]
[358814497,1745459738652,5179.3,0.00013699,2]
[358814498,1745459738870,5179.3,0.00013699,2]
[358814499,1745459739021,5179.3,0.00013699,2]
[358814500,1745459739350,5179.3,0.00013699,2]
[358814501,1745459739738,5179.3,0.00013699,2]
[358814502,1745459740133,234.79690374,0.00013699,2]
[358814503,1745459740156,4944.50309626,0.00013699,2]
[358814504,1745459740537,5179.3,0.00013699,2]
[358814505,1745459741469,5179.3,0.00013699,2]
[358814506,1745459741935,5179.3,0.00013699,2]
[358814507,1745459742295,5179.3,0.00013699,2]
[358814508,1745459743315,5179.3,0.00013699,2]
[358814509,1745459743489,5179.3,0.00013699,2]
[358814510,1745459743904,171.20058739,0.00013699,2]
[358814511,1745459743928,5008.10171943,0.00013699,2]
[358814514,1745459996687,-182.06382512,0.00018996,2]
[358814517,1745460042301,1000.0,0.000378,60]
[358814520,1745460049392,2658.194397,0.00037808,60]
[358814524,1745460066944,1000.0,0.00037808,60]
[358814529,1745460494497,181.042411,0.000378,120]
[358814530,1745460524350,172.042411,0.000378,120]
[358814531,1745460545503,1262.9523872,0.000378,60]
[358814539,1745460570208,474.72,0.00017203,2]
[358814540,1745460607651,202.0,0.00037808,60]
[358814544,1745460632013,-163.22,0.00019144,2]
[358814546,1745460632023,-835.29788266,0.00019204,2]
[358815038,1745460637629,-164.70211734,0.00019204,2]
[358815041,1745460637640,-200.0,0.00019226,2]
[358815042,1745460637650,-423.17,0.00019286,2]
[358815044,1745460637660,-300.0,0.00019375,2]
[358815046,1745460637669,-1200.0,0.00019375,2]
[358815048,1745460637679,-23900.0,0.00019376,2]
[358815050,1745460637690,-474.72,0.00019467,2]
[358815052,1745460637701,-250.0,0.00019707,2]
[358815053,1745460637710,-3986.0,0.0001972,2]
[358815054,1745460637719,-5886.718,0.0001972,2]
[358815055,1745460637728,-269.182,0.0001972,2]
[358815056,1745460637738,-881.332,0.0001972,2]
[358815057,1745460637748,-881.456,0.0001972,2]
[358815058,1745460637757,-220.3121621,0.00019799,2]
[358815059,1745460637768,-166.7,0.00019809,2]
[358815060,1745460637778,-2000.0,0.0001984,2]
[358815061,1745460637788,-1233.1614,0.00019886,2]
[358815062,1745460637797,-1000.0,0.00019899,2]
[358815063,1745460637806,-3042.6561,0.000199,2]
[358815064,1745460637815,-1025.0,0.000199,2]
[358815065,1745460637825,-500.0,0.00019973,2]
[358815066,1745460637834,-1044.32081482,0.00019985,2]
[358815067,1745460637844,-204.0,0.00019985,2]
[358815068,1745460637854,-3270.5134422,0.00019986,2]
[358815069,1745460637864,-52774.4881819,0.00019986,2]
[358815070,1745460637873,-26862.7422534,0.00019986,2]
[358815071,1745460637882,-7439.2532911,0.00019986,2]
[358815073,1745460637892,-207.4,0.00019988,2]
[358815075,1745460637901,-668.65185757,0.00019988,2]
[358815077,1745460637911,-500.0,0.00019998,2]
[358815079,1745460637920,-500.0,0.00019998,2]
[358815080,1745460637929,-500.0,0.00019998,2]
[358815082,1745460637939,-500.0,0.00019998,2]
[358815084,1745460637948,-500.0,0.00019998,2]
[358815086,1745460637958,-500.0,0.00019998,2]
[358815088,1745460637967,-500.0,0.00019998,2]
[358815090,1745460637976,-500.0,0.00019998,2]
[358815092,1745460637986,-500.0,0.00019998,2]
[358815094,1745460637995,-500.0,0.00019998,2]
[358815096,1745460638004,-500.0,0.00019998,2]
[358815098,1745460638013,-500.0,0.00019998,2]
[358815100,1745460638023,-205.543475,0.00019998,2]
[358815102,1745460638032,-500.0,0.00019998,2]
[358815104,1745460638042,-500.0,0.00019998,2]
[358815106,1745460638052,-695.73900294,0.00019998,2]
[358815108,1745460638062,-695.73900294,0.00019998,2]
[358815110,1745460638071,-695.73900294,0.00019998,2]
[358815112,1745460638080,-695.73900294,0.00019998,2]
[358815114,1745460638090,-695.73900294,0.00019998,2]
[358815116,1745460638099,-695.73900294,0.00019998,2]
[358815118,1745460638109,-695.73900294,0.00019998,2]
[358815120,1745460638118,-695.73900294,0.00019998,2]
[358815122,1745460638127,-695.73900294,0.00019998,2]
[358815124,1745460638137,-695.73900294,0.00019998,2]
[358815126,1745460638146,-695.73900294,0.00019998,2]
[358815128,1745460638155,-714.1556236,0.00019998,2]
[358815130,1745460638165,-714.1556236,0.00019998,2]
[358815131,1745460638174,-1000.0,0.00019998,2]
[358815134,1745460638184,-1000.0,0.00019998,2]
[358815136,1745460638193,-1000.0,0.00019998,2]
[358815137,1745460638203,-1000.0,0.00019998,2]
[358815139,1745460638213,-1000.0,0.00019998,2]
[358815141,1745460638222,-1000.0,0.00019999,2]
[358815143,1745460638232,-1000.0,0.00019999,2]
[358815145,1745460638241,-1000.0,0.00019999,2]
[358815147,1745460638251,-1000.0,0.00019999,2]
[358815149,1745460638260,-1000.0,0.00019999,2]
[358815151,1745460638269,-1000.0,0.00019999,2]
[358815153,1745460638278,-1000.0,0.00019999,2]
[358815155,1745460638287,-1000.0,0.00019999,2]
[358815157,1745460638297,-1000.0,0.00019999,2]
[358815159,1745460638306,-1000.0,0.00019999,2]
[358815161,1745460638315,-1000.0,0.00019999,2]
[358815163,1745460638324,-1000.0,0.00019999,2]
[358815165,1745460638333,-300.0,0.00019999,2]
[358815167,1745460638343,-312.66067017,0.00019999,2]
[358815169,1745460638352,-300.0,0.00019999,2]
[358815171,1745460638361,-1091.54433043,0.00019999,2]
[358815173,1745460638370,-55667.37004628,0.00019999,2]
[358815175,1745460638380,-1152.0,0.0002,2]
[358815177,1745460638389,-940230.1274591,0.0002,2]
[358815179,1745460638398,-1365053.80491652,0.0002,2]
[358815181,1745460638412,-2494318.525,0.0002,2]
[358815303,1745460640087,-1909.07959052,0.00019999,2]
[358815305,1745460640097,-1109.32967494,0.0002,2]
[358815312,1745460640154,-1557462.03802133,0.0002,2]
[358815314,1745460640165,-7209.26424531,0.0002,2]
[358815316,1745460640175,-300.99738329,0.0002,2]
[358815318,1745460640185,-1481.43211323,0.0002,2]
[358815320,1745460640194,-41232.86796624,0.0002,2]
[358815322,1745460640203,-3050.53686723,0.0002,2]
[358815324,1745460640212,-1804.6,0.0002,2]
[358815326,1745460640221,-6653.0,0.0002,2]
[358815328,1745460640231,-5647.72483966,0.0002,2]
[358815330,1745460640240,-3419071.50569241,0.0002,2]
[358815798,1745460646707,-1909.07959052,0.00019999,2]
[358815800,1745460646717,-1695.94551116,0.0002,2]
[358815805,1745460646761,-258.19848814,0.0002,2]
[358815848,1745460728734,3166.19367,0.00037808,60]
[358815853,1745460795672,250.0,0.00017,2]
[358815854,1745460798966,-157.33211982,0.00019,2]
[358815856,1745460844166,188.19,0.00015254,2]
[358815861,1745460880867,-142.66788018,0.00019,2]
[358815862,1745460880888,-113.96248886,0.00019068,2]
[358815863,1745460894676,900.0,0.00037808,60]
[358815864,1745460903205,150.0,0.00018967,2]
[358815866,1745460906135,-180.51226124,0.00019,2]
[358815869,1745460912610,-472.917708,0.00018975,2]
[358815870,1745460934223,506.73,0.00018945,2]
[358815871,1745460936320,-190.55785929,0.00018975,2]
[358815872,1745460943622,150.0,0.00018959,2]
[358815874,1745461016117,2653.29,0.00018913,2]
[358815875,1745461016307,23900.0,0.00018913,2]
[358815877,1745461027432,-206.66,0.00018975,2]
[358815879,1745461084253,-204.84,0.00018975,2]
[358815880,1745461085389,-152.0,0.00018975,2]
[358815883,1745461142578,3373.0,0.00037808,60]
[358815885,1745461149667,-289.01,0.00018975,2]
[358815887,1745461205529,783.92,0.00018927,2]
[358815891,1745461239420,200.0,0.00018907,2]
[358815893,1745461273587,-237.28,0.00018975,2]
[358815894,1745461309846,256.630369,0.00018879,2]
[358815895,1745461311617,-176.20308678,0.00018975,2]
[358815897,1745461335698,150.0,0.00018897,2]
[358815900,1745461365810,393.5,0.00018897,2]
[358815901,1745461369921,-152.0,0.00018975,2]
[358815903,1745461409734,1000.0,0.00018864,2]
[358815904,1745461423300,466.445426,0.00037808,60]
[358815905,1745461429707,466.445426,0.00019999,4]
[358815907,1745461445070,-152.94209695,0.00018975,2]
[358815910,1745461490062,952.7,0.00018845,2]
[358815912,1745461504305,244.47,0.00018829,2]
[358815913,1745461504839,-74.80924898,0.00018975,2]
[358815914,1745461504862,-127.10187248,0.00018981,2]
[358815917,1745461530937,412.9,0.00018863,2]
[358815918,1745461532134,167.47,0.00018863,2]
[358815919,1745461532969,156.23736074,0.0002,120]
[358815923,1745461607573,-122.89812752,0.00018981,2]
[358815925,1745461631030,151.14935105,0.00021,120]
[358815926,1745461663057,500.0,0.00018871,2]
[358815927,1745461663125,-800.0,0.00019,2]
[358815928,1745461663907,-300.0,0.00019,2]
[358815929,1745461665296,-800.0,0.00019,2]
[358815930,1745461666660,-800.0,0.00019,2]
[358815931,1745461668084,-800.0,0.00019,2]
[358815932,1745461668129,-237.36,0.00019,2]
[358815933,1745461669797,-800.0,0.00019,2]
[358815934,1745461671153,-800.0,0.00019,2]
[358815935,1745461671220,-316.73009314,0.00019,2]
[358815936,1745461672790,-306.25764562,0.00019,2]
[358815943,1745461751438,-74.22751114,0.00019068,2]
[358815944,1745461751460,-725.77248886,0.0001909,2]
[358815945,1745461752282,-290.38717263,0.0001909,2]
[358815954,1745461775239,250.0,0.00018897,2]
[358815955,1745461776858,-311.19033851,0.0001909,2]
[358815956,1745461785150,209.75,0.00018907,2]
[358815963,1745461803151,150.0,0.00018967,2]
[358815965,1745461804416,2471.37,0.00018907,2]
[358815968,1745461826092,188.19,0.00015123,2]
[358816002,1745461832487,-740.06056412,0.00019203,2]
[358816004,1745461832497,-166.7,0.00019444,2]
[358816006,1745461832507,-709.4611875,0.000195,2]
[358816008,1745461832517,-740.06056412,0.00019574,2]
[358816010,1745461832527,-150.0,0.000197,2]
[358816012,1745461832536,-150.0,0.000197,2]
[358816014,1745461832546,-150.0,0.000197,2]
[358816015,1745461832556,-437.48527224,0.000197,2]
[358816016,1745461832568,-562.51472776,0.000197,2]
[358816017,1745461832577,-300.0,0.00019798,2]
[358816018,1745461832587,-1200.0,0.00019798,2]
[358816019,1745461832596,-1987.48527224,0.00019799,2]
[358816020,1745461832607,-1934.19462776,0.00019799,2]
[358816021,1745461832617,-209.296554,0.00019799,2]
[358816022,1745461832627,-300.0,0.00019799,2]
[358816023,1745461832636,-150.0,0.000198,2]
[358816024,1745461832646,-150.0,0.000198,2]
[358816025,1745461832655,-202.49252789,0.00019854,2]
[358816026,1745461832666,-85.44893804,0.00019855,2]
[358816027,1745461832899,-265.63106196,0.00019855,2]
[358816028,1745461832909,-351.08,0.00019855,2]
[358816029,1745461832920,-625.2,0.00019855,2]
[358816030,1745461832930,-509.30682815,0.00019873,2]
[358816031,1745461832939,-207.4,0.00019874,2]
[358816032,1745461832948,-1044.32081482,0.00019885,2]
[358816033,1745461832958,-2142.5972,0.00019885,2]
[358816034,1745461832967,-850.0,0.00019885,2]
[358816035,1745461832977,-2167.63426212,0.00019886,2]
[358816036,1745461832986,-19505.74411605,0.00019886,2]
[358816037,1745461832998,-1204.05798395,0.00019886,2]
[358816038,1745461833008,-3042.6561,0.00019886,2]
[358816039,1745461833017,-2303.4368,0.00019886,2]
[358816040,1745461833028,-5783.951,0.00019886,2]
[358816041,1745461833038,-1233.1614,0.00019886,2]
[358816042,1745461833048,-320.979,0.00019886,2]
[358816043,1745461833058,-158.3339,0.00019886,2]
[358816044,1745461833068,-2269.1441,0.00019886,2]
[358816045,1745461833077,-3171.1615,0.00019886,2]
[358816046,1745461833087,-1437.6633,0.00019886,2]
[358816047,1745461833097,-1000.0,0.00019886,2]
[358816048,1745461833108,-2500.0,0.00019886,2]
[358816049,1745461833119,-668.65185757,0.00019887,2]
[358816050,1745461833129,-151.0,0.00019887,2]
[358816051,1745461833139,-2167.63426205,0.00019888,2]
[358816052,1745461833148,-2167.63426205,0.00019889,2]
[358816053,1745461833158,-2167.63426205,0.00019891,2]
[358816054,1745461833171,-2167.63426205,0.00019892,2]
[358816055,1745461833181,-2167.63426205,0.00019894,2]
[358816056,1745461833191,-2167.63426205,0.00019895,2]
[358816057,1745461833200,-926.046,0.00019897,2]
[358816058,1745461833210,-2060.0,0.00019897,2]
[358816059,1745461833221,-206.818,0.00019897,2]
[358816060,1745461833231,-257.099,0.00019897,2]
[358816061,1745461833243,-2146.0,0.00019897,2]
[358816062,1745461833252,-2167.63426205,0.00019897,2]
[358816063,1745461833262,-758.72533966,0.00019898,2]
[358816064,1745461833274,-913.66948898,0.00019898,2]
[358816065,1745461833683,-495.23943341,0.00019898,2]
[358816066,1745461833694,-31406.1147,0.00019899,2]
[358816067,1745461833704,-2253.614,0.000199,2]
[358816068,1745461833713,-1142.8025,0.000199,2]
[358816069,1745461833723,-202.3162,0.000199,2]
[358816070,1745461833732,-1000.0,0.000199,2]
[358816071,1745461833743,-504.57373187,0.000199,2]
[358816072,1745461833752,-2207.17728284,0.000199,2]
[358816073,1745461833762,-2167.63426205,0.000199,2]
[358816074,1745461833771,-177.2622953,0.00019973,2]
[358816075,1745461833781,-159.89559636,0.00019973,2]
[358816076,1745461833791,-500.0,0.00019973,2]
[358816077,1745461833801,-500.0,0.00019973,2]
[358816078,1745461833810,-361.3032549,0.00019973,2]
[358816079,1745461833821,-500.99142788,0.00019973,2]
[358816080,1745461833830,-159.89550876,0.00019973,2]
[358816081,1745461833840,-356.35559829,0.00019973,2]
[358816082,1745461833849,-500.0,0.00019973,2]
[358816083,1745461833859,-301.07,0.00019976,2]
[358816084,1745461833868,-301.07,0.00019976,2]
[358816085,1745461833878,-301.07,0.00019976,2]
[358816086,1745461833888,-301.07,0.0001998,2]
[358816087,1745461833897,-1000.0,0.00019985,2]
[358816088,1745461833906,-1000.0,0.00019985,2]
[358816089,1745461833917,-1000.0,0.00019985,2]
[358816090,1745461833926,-1000.0,0.00019985,2]
[358816091,1745461833935,-1000.0,0.00019985,2]
[358816092,1745461833945,-1000.0,0.00019985,2]
[358816093,1745461833955,-1000.0,0.00019985,2]
[358816094,1745461833964,-1000.0,0.00019985,2]
[358816095,1745461833974,-1000.0,0.00019985,2]
[358816096,1745461833983,-1000.0,0.00019985,2]
[358816097,1745461833993,-1000.0,0.00019985,2]
[358816098,1745461834003,-1000.0,0.00019985,2]
[358816099,1745461834013,-1000.0,0.00019985,2]
[358816100,1745461834022,-1000.0,0.00019985,2]
[358816101,1745461834032,-1000.0,0.00019985,2]
[358816102,1745461834042,-1000.0,0.00019985,2]
[358816103,1745461834052,-1000.0,0.00019985,2]
[358816104,1745461834062,-1000.0,0.00019985,2]
[358816105,1745461834072,-723.0,0.00019985,2]
[358816106,1745461834081,-1000.0,0.00019985,2]
[358816107,1745461834091,-1000.0,0.00019985,2]
[358816108,1745461834100,-1000.0,0.00019985,2]
[358816109,1745461834110,-8951.39000344,0.00019986,2]
[358816110,1745461834123,-6048.24195886,0.00019986,2]
[358816111,1745461834132,-1455.38705787,0.00019986,2]
[358816112,1745461834178,-3257.09473256,0.00019986,2]
[358816113,1745461834231,-26112.19028707,0.00019986,2]
[358816114,1745461834240,-6246.26938232,0.00019986,2]
[358816115,1745461834251,-3828.28166638,0.00019986,2]
[358816116,1745461834261,-3976.38190656,0.00019986,2]
[358816117,1745461834272,-576.30561566,0.00019986,2]
[358816118,1745461834319,-910.75701877,0.00019986,2]
[358816149,1745461838350,-1037.35002977,0.00019897,2]
[358816153,1745461838383,-2948.64997023,0.00019897,2]
[358816156,1745461838393,-1335.0,0.00019897,2]
[358816158,1745461838402,-18486.58415131,0.00019986,2]
[358816160,1745461838414,-3327.2419903,0.00019986,2]
[358816161,1745461838423,-386.15906047,0.00019986,2]
[358816163,1745461838433,-301.07,0.00019988,2]
[358816166,1745461838444,-301.07,0.00019989,2]
[358816168,1745461838453,-301.07,0.0001999,2]
[358816170,1745461838464,-301.07,0.0001999,2]
[358816172,1745461838474,-301.07,0.0001999,2]
[358816174,1745461838483,-301.07,0.0001999,2]
[358816177,1745461838505,-740.06056413,0.00019995,2]
[358816179,1745461838516,-1000.0,0.00019997,2]
[358816181,1745461838526,-1000.0,0.00019997,2]
[358816183,1745461838536,-1000.0,0.00019997,2]
[358816185,1745461838546,-1000.0,0.00019997,2]
[358816187,1745461838555,-1000.0,0.00019997,2]
[358816189,1745461838566,-1000.0,0.00019997,2]
[358816191,1745461838575,-1000.0,0.00019997,2]
[358816194,1745461838585,-1000.0,0.00019998,2]
[358816196,1745461838597,-1000.0,0.00019998,2]
[358816198,1745461838621,-1000.0,0.00019998,2]
[358816200,1745461838631,-1000.0,0.00019998,2]
[358816202,1745461838641,-1000.0,0.00019998,2]
[358816204,1745461838651,-1000.0,0.00019998,2]
[358816206,1745461838661,-1000.0,0.00019998,2]
[358816208,1745461838671,-1000.0,0.00019998,2]
[358816210,1745461838680,-1000.0,0.00019998,2]
[358816212,1745461838690,-1000.0,0.00019998,2]
[358816214,1745461838700,-1000.0,0.00019998,2]
[358816216,1745461838710,-1000.0,0.00019998,2]
[358816218,1745461838720,-1000.0,0.00019998,2]
[358816220,1745461838730,-1000.0,0.00019998,2]
[358816222,1745461838740,-1000.0,0.00019998,2]
[358816224,1745461838750,-1000.0,0.00019998,2]
[358816226,1745461838760,-1000.0,0.00019998,2]
[358816228,1745461838770,-300.0,0.00019999,2]
[358816230,1745461838780,-1644.09672093,0.00019999,2]
[358816232,1745461838792,-1363.75662039,0.00019999,2]